bitfinex/quotes_SOLUSD_20240809
["timestamp","ask_amount","ask_price","bid_price","bid_amount"]
[1723245158604,6.56129,155.38,155.27,21.597]
[1723245158605,6.68718,155.37,155.29,20.0]
[1723245158815,0.25098,155.37,155.28,20.0]
[1723245160097,6.68768,155.36,155.28,20.0]
[1723245160515,0.25098,155.36,155.28,20.0]
[1723245161313,0.25098,155.36,155.29,1.28751984]
[1723245161713,0.25098,155.36,155.28,20.0]
[1723245163699,0.25098,155.35,155.28,20.0]
[1723245163914,0.12549,155.35,155.29,1.28759552]
[1723245164209,0.12549,155.36,155.29,1.28759552]
[1723245164424,46.353,155.44,155.32,39.81]
[1723245164617,39.81,155.46,155.34,39.81]
[1723245164912,6.4321,155.47,155.36,39.81]
[1723245165112,6.4321,155.47,155.36,41.09674361]
[1723245165317,6.4317,155.48,155.38,6.2085]
[1723245166301,6.4321,155.47,155.38,6.2085]
[1723245167041,39.81,155.49,155.38,6.2085]
[1723245167212,6.4321,155.47,155.38,6.2085]
[1723245167411,6.4307,155.51,155.4,56.3904]
[1723245167617,39.81,155.5,155.4,16.5804]
[1723245168001,39.81,155.48,155.4,16.5804]
[1723245168191,39.81,155.46,155.4,16.5804]
[1723245168401,6.4336,155.44,155.38,6.2085]
[1723245168994,6.80937,155.45,155.38,6.2085]
[1723245169311,0.37647,155.45,155.38,6.2085]
[1723245170017,6.80957,155.45,155.38,6.2085]
[1723245170220,0.12549,155.44,155.38,6.2085]
[1723245170720,6.55889,155.44,155.38,6.2085]
[1723245171310,6.68468,155.43,155.38,6.2085]
[1723245171625,0.25098,155.43,155.38,6.2085]
[1723245171803,0.12549,155.42,155.36,16.5804]
[1723245172003,0.25098,155.42,155.36,16.5804]
[1723245172208,0.12549,155.43,155.37,1.28702385]
[1723245172409,0.12549,155.43,155.36,16.5804]
[1723245172612,0.25098,155.43,155.36,16.5804]
[1723245173826,0.25098,155.42,155.36,16.5804]
[1723245174209,6.68518,155.42,155.36,16.5804]
[1723245174418,0.25098,155.42,155.36,16.5804]
[1723245175027,0.25098,155.41,155.36,16.5804]
[1723245175411,0.12549,155.4,155.36,16.5804]
[1723245175618,0.25098,155.4,155.34,6.2085]
[1723245176312,6.68608,155.4,155.34,6.2085]
[1723245177621,0.12549,155.38,155.34,6.2085]
[1723245178011,6.56129,155.38,155.34,6.2085]
[1723245178917,0.12549,155.37,155.34,6.2085]
[1723245179113,0.37647,155.37,155.34,6.2085]
[1723245180022,0.37647,155.37,155.32,16.5804]
[1723245180333,0.25098,155.37,155.33,1.2874573]
[1723245180634,6.56099,155.39,155.32,16.5804]
[1723245180809,6.81237,155.38,155.32,16.5804]
[1723245181211,0.37647,155.38,155.32,16.5804]
[1723245182012,6.81227,155.38,155.32,16.5804]
[1723245182208,6.4362,155.37,155.32,16.5804]
[1723245183635,0.50196,155.36,155.32,16.5804]
[1723245184721,0.12549,155.36,155.33,1.28750662]
[1723245185043,0.50196,155.37,155.33,1.28750662]
[1723245185849,0.25098,155.37,155.33,1.28750662]
[1723245186014,31.97549,155.41,155.32,16.5804]
[1723245186339,31.97549,155.39,155.32,16.5804]
[1723245186634,0.37647,155.38,155.32,16.5804]
[1723245187135,6.435,155.4,155.32,16.5804]
[1723245187924,31.85,155.34,155.28,6.72569554]
[1723245188234,32.1761,155.4,155.23,21.4945]
[1723245188235,38.2867,155.36,155.29,1.28759827]
[1723245188418,6.4362,155.37,155.29,21.4945]
[1723245188615,38.2858,155.38,155.29,21.4945]
[1723245188837,6.81277,155.37,155.29,21.4945]
[1723245189029,6.93826,155.37,155.29,21.4945]
[1723245189419,31.85,155.36,155.29,21.4945]
[1723245189615,6.4377,155.34,155.29,21.4945]
[1723245189820,31.85,155.36,155.29,21.4945]
[1723245190137,6.81297,155.37,155.29,21.4945]
[1723245190437,51.56219,155.36,155.29,21.4945]
[1723245190627,0.12549,155.35,155.29,21.4945]
[1723245190808,6.4377,155.34,155.29,21.4945]
[1723245191013,45.0,155.33,155.29,21.4945]
[1723245192118,45.0,155.33,155.3,1.28761269]
[1723245192441,45.0,155.33,155.29,21.4945]
[1723245194848,0.12549,155.37,155.3,1.28755729]
[1723245195041,45.37647,155.37,155.3,1.28755729]
[1723245195219,45.25098,155.37,155.3,1.28755729]
[1723245195415,6.4354,155.39,155.29,21.4945]
[1723245195617,6.4354,155.39,155.3,1.28730671]
[1723245195813,32.1568,155.49,155.34,31.85]
[1723245196034,22.3338,155.5,155.33,22.3047]
[1723245196035,31.85,155.46,155.36,31.85]
[1723245196217,38.2817,155.48,155.38,31.85]
[1723245196412,38.2817,155.48,155.39,22.3047]
[1723245197334,38.2817,155.48,155.4,1.28658321]
[1723245197548,6.4317,155.48,155.39,22.3047]
[1723245197725,6.4313,155.49,155.4,33.13658358]
[1723245198121,31.85,155.48,155.39,22.3047]
[1723245198842,6.4332,155.45,155.39,22.3047]
[1723245199142,6.4334,155.44,155.39,22.3047]
[1723245199641,45.12549,155.43,155.39,22.3047]
[1723245199848,45.0,155.43,155.4,1.286757]
[1723245200638,45.0,155.43,155.39,22.3047]
[1723245203024,6.4349,155.41,155.34,22.3047]
[1723245203228,83.41069,155.4,155.34,22.3047]
[1723245203536,6.4354,155.39,155.34,22.3047]
[1723245203738,45.0,155.38,155.34,22.3047]
[1723245204321,45.0,155.39,155.34,22.3047]
[1723245206549,0.12549,155.38,155.34,22.3047]
[1723245206752,38.78806,155.38,155.34,22.3047]
[1723245206945,45.0,155.37,155.34,22.3047]
[1723245207849,0.12549,155.36,155.3,22.3047]
[1723245208057,0.37647,155.36,155.3,22.3047]
[1723245209555,45.0,155.37,155.31,1.28755301]
[1723245210131,45.0,155.37,155.3,22.3047]
[1723245213061,6.4342,155.42,155.31,33.13736525]
[1723245213361,31.85,155.42,155.31,33.13736525]
[1723245213564,38.2843,155.42,155.32,20.0]
[1723245213856,31.85,155.42,155.33,31.85]
[1723245214759,38.2843,155.42,155.33,31.85]
[1723245215052,45.37647,155.41,155.33,31.85]
[1723245215236,45.0,155.41,155.36,6.3524]
[1723245215840,45.0,155.42,155.36,6.3524]
[1723245217751,38.2834,155.44,155.36,6.3524]
[1723245218259,31.85,155.44,155.36,6.3524]
[1723245218442,31.85,155.42,155.36,6.3524]
[1723245219154,6.4362,155.37,155.36,6.3524]
[1723245219368,51.4362,155.37,155.36,6.3524]
[1723245219535,51.4362,155.37,155.35,15.9523]
[1723245219736,45.0,155.36,155.32,6.3748]
[1723245222169,45.0,155.37,155.32,6.3748]
[1723245222866,31.97549,155.39,155.32,6.3748]
[1723245223067,45.12549,155.38,155.32,6.3748]
[1723245223253,45.0,155.38,155.32,6.3748]
[1723245225566,45.0,155.39,155.33,1.28717988]
[1723245226960,45.0,155.4,155.32,6.3748]
[1723245227178,45.0,155.4,155.33,1.28713508]
[1723245227469,76.85,155.4,155.32,6.3748]
[1723245228045,6.4357,155.39,155.32,6.3748]
[1723245228247,45.0,155.38,155.32,6.3748]
[1723245228475,0.12549,155.42,155.33,0.38173804]
[1723245228675,31.85,155.45,155.34,1.2869701]
[1723245228977,6.4336,155.44,155.34,1.2869701]
[1723245229159,6.4338,155.43,155.34,1.2869701]
[1723245229875,45.0,155.42,155.34,1.2869701]
[1723245231747,32.10098,155.41,155.32,6.3748]
[1723245231972,6.4365,155.37,155.32,6.3748]
[1723245232366,45.0,155.36,155.32,6.3748]
[1723245232851,38.2854,155.39,155.32,6.3748]
[1723245233274,45.0,155.38,155.32,6.3748]
[1723245233968,6.435,155.4,155.32,6.3748]
[1723245234173,45.0,155.39,155.32,6.3748]
[1723245236376,76.85,155.39,155.32,6.3748]
[1723245236573,6.4363,155.37,155.32,6.3748]
[1723245236770,6.4359,155.38,155.32,6.3748]
[1723245236977,51.4362,155.37,155.32,6.3748]
[1723245237159,6.4359,155.38,155.32,6.3748]
[1723245237350,45.0,155.37,155.32,6.3748]
[1723245237953,45.0,155.38,155.32,6.3748]
[1723245238779,31.85,155.39,155.32,6.3748]
[1723245239471,38.2854,155.39,155.32,6.3748]
[1723245240063,45.0,155.38,155.32,6.3748]
[1723245242357,31.85,155.41,155.32,6.3748]
[1723245242674,6.4342,155.42,155.34,31.85]
[1723245243176,31.85,155.44,155.34,31.85]
[1723245243374,31.85,155.42,155.33,20.0]
[1723245243680,0.25098,155.41,155.33,20.0]
[1723245244597,6.68558,155.41,155.33,20.0]
[1723245244789,45.0,155.4,155.33,20.0]
[1723245245886,51.4346,155.41,155.33,20.0]
[1723245246079,45.0,155.41,155.33,20.0]
[1723245246387,51.4346,155.41,155.33,21.28711575]
[1723245246763,6.4359,155.38,155.32,6.3748]
[1723245246966,45.0,155.37,155.32,6.3748]
[1723245247990,45.0,155.38,155.32,6.3748]
[1723245249984,3.09082199,155.44,155.32,38.2248]
[1723245250163,31.85,155.44,155.35,15.4374]
[1723245250365,31.85,155.44,155.36,1.28692713]
[1723245250790,6.434,155.43,155.36,1.28692713]
[1723245250957,31.85,155.44,155.35,15.4374]
[1723245251359,31.85,155.44,155.35,16.72435671]
[1723245251586,6.4342,155.42,155.35,15.4374]
[1723245251781,38.2842,155.42,155.35,15.4374]
[1723245252881,31.85,155.4,155.35,15.4374]
[1723245253088,6.4359,155.38,155.35,15.4374]
[1723245253275,45.0,155.37,155.35,15.4374]
[1723245253803,45.0,155.38,155.35,15.4374]
[1723245256792,38.285,155.4,155.35,15.4374]
[1723245257397,31.85,155.4,155.35,15.4374]
[1723245257883,31.85,155.42,155.36,1.28708293]
[1723245258485,38.2844,155.42,155.35,15.4374]
[1723245258685,31.85,155.42,155.35,15.4374]
[1723245259097,31.85,155.4,155.32,6.3748]
[1723245259398,38.2859,155.38,155.32,6.3748]
[1723245259789,45.0,155.37,155.32,6.3748]
[1723245259970,45.0,155.37,155.33,1.28727468]
[1723245260865,6.4355,155.39,155.33,1.28727468]
[1723245261071,45.0,155.38,155.33,1.28727468]
[1723245261293,6.4348,155.41,155.34,16.5378]
[1723245261596,6.435,155.4,155.34,16.5378]
[1723245262791,45.0,155.39,155.34,16.5378]
[1723245267300,6.4347,155.41,155.34,16.5378]
[1723245267301,45.0,155.4,155.34,16.5378]
[1723245270105,6.4359,155.38,155.34,16.5378]
[1723245270403,45.0,155.37,155.34,16.5378]
[1723245270694,51.4363,155.37,155.34,16.5378]
[1723245272987,45.0,155.37,155.34,16.5378]
[1723245274689,51.4363,155.37,155.34,16.5378]
[1723245275183,31.85,155.36,155.29,23.25830415]
[1723245275403,45.0,155.35,155.29,16.5378]
[1723245276081,38.2859,155.38,155.29,16.5378]
[1723245276285,45.0,155.37,155.29,16.5378]
[1723245276480,51.4364,155.37,155.29,16.5378]
[1723245277390,6.4367,155.36,155.29,16.5378]
[1723245277597,45.0,155.35,155.29,16.5378]
[1723245278305,51.4371,155.35,155.29,16.5378]
[1723245278483,31.85,155.34,155.29,16.5378]
[1723245278679,45.0,155.33,155.29,16.5378]
[1723245279093,31.85,155.32,155.29,16.5378]
[1723245279306,45.0,155.31,155.29,16.5378]
[1723245280815,31.85,155.3,155.25,15.7023]
[1723245281003,38.2907,155.27,155.24,6.0944]
[1723245281304,51.4408,155.26,155.22,16.5443987]
[1723245281714,31.85,155.25,155.22,16.5443987]
[1723245281894,45.0,155.24,155.22,16.5443987]
[1723245282287,38.41749,155.23,155.22,0.8420987]
[1723245282492,76.85,155.23,155.22,0.8420987]
[1723245282702,77.35196,155.23,155.22,0.8420987]
[1723245282887,83.79396,155.23,155.22,0.8420987]
[1723245283909,83.79396,155.23,155.16,6.0944]
[1723245283910,0.12549,155.22,155.16,6.0944]
[1723245284092,31.85,155.18,155.16,6.0944]
[1723245284410,45.0,155.17,155.16,6.0944]
[1723245285195,45.0,155.17,155.13,15.7023]
[1723245286001,31.85,155.17,155.13,15.7023]
[1723245286203,45.0,155.16,155.13,15.7023]
[1723245287288,31.85,155.19,155.13,15.7023]
[1723245287591,45.0,155.18,155.13,15.7023]
[1723245288308,6.3679,155.27,155.14,1.28886856]
[1723245288602,6.3679,155.27,155.14,20.0]
[1723245288603,31.85,155.21,155.14,20.0]
[1723245288997,38.2929,155.21,155.13,15.7023]
[1723245289523,31.97549,155.19,155.13,15.7023]
[1723245289693,45.12549,155.18,155.13,15.7023]
[1723245290002,45.0,155.18,155.13,15.7023]
[1723245290594,31.85,155.17,155.13,15.7023]
[1723245290794,45.0,155.16,155.13,15.7023]
[1723245292015,45.0,155.16,155.08,12.81285651]
[1723245292221,31.85,155.13,155.07,0.8420987]
[1723245292397,31.85,155.11,155.07,0.8420987]
[1723245292807,45.12549,155.1,155.07,0.8420987]
[1723245293010,45.25098,155.1,155.07,0.8420987]
[1723245293210,45.0,155.1,155.07,0.8420987]
[1723245293500,31.85,155.09,155.07,0.8420987]
[1723245293698,45.0,155.08,155.07,0.8420987]
[1723245297914,45.50196,155.08,155.07,0.8420987]
[1723245298303,45.0,155.08,155.07,0.8420987]
[1723245299209,31.85,155.13,155.07,0.8420987]
[1723245299836,31.85,155.11,155.07,0.8420987]
[1723245300217,31.85,155.13,155.07,0.8420987]
[1723245300741,45.0,155.12,155.07,0.8420987]
[1723245301042,32.22647,155.11,155.07,0.8420987]
[1723245301231,45.0,155.1,155.07,0.8420987]
[1723245301437,51.4474,155.1,155.07,0.8420987]
[1723245301622,45.0,155.1,155.07,0.8420987]
[1723245301809,0.25098,155.09,155.07,0.8420987]
[1723245302012,0.37647,155.09,155.07,0.8420987]
[1723245302213,51.4475,155.1,155.07,0.8420987]
[1723245302214,45.0,155.1,155.07,0.8420987]
[1723245303619,22.6852,155.25,155.09,21.6133]
[1723245303943,31.85,155.22,155.1,51.85]
[1723245304111,31.85,155.22,155.11,0.25098]
[1723245304312,31.85,155.22,155.13,21.6133]
[1723245304511,6.442,155.23,155.14,20.0]
[1723245304826,31.85,155.28,155.14,20.0]
[1723245304827,31.85,155.22,155.14,20.0]
[1723245305230,31.85,155.24,155.14,21.28859119]
[1723245305442,31.85,155.26,155.15,33.13859119]
[1723245305648,38.2918,155.24,155.14,20.0]
[1723245306521,31.85,155.24,155.15,1.28862866]
[1723245306839,31.85,155.27,155.18,31.85]
[1723245307144,31.85,155.27,155.19,1.28836785]
[1723245307743,38.2905,155.27,155.18,31.85]
[1723245308247,38.2898,155.29,155.19,1.28836707]
[1723245308430,31.85,155.29,155.19,20.0]
[1723245308829,6.4404,155.27,155.19,20.0]
[1723245309224,6.442,155.24,155.17,21.6133]
[1723245309448,38.2921,155.23,155.17,21.6133]
[1723245309757,6.4425,155.22,155.17,21.6133]
[1723245309921,45.0,155.21,155.17,21.6133]
[1723245311330,6.56909,155.2,155.17,21.6133]
[1723245311536,6.69458,155.2,155.17,15.0981]
[1723245311735,45.0,155.19,155.17,15.0981]
[1723245313440,0.12549,155.23,155.17,15.0981]
[1723245313648,45.50196,155.23,155.17,15.0981]
[1723245314629,39.92,155.24,155.17,15.0981]
[1723245314848,48.4334,155.31,155.17,15.0981]
[1723245314849,39.92,155.26,155.17,15.0981]
[1723245315045,39.92,155.36,155.19,6.5152]
[1723245315046,39.92,155.3,155.19,6.5152]
[1723245315254,6.4399,155.28,155.19,6.5152]
[1723245316558,6.4404,155.27,155.19,6.5152]
[1723245317037,46.36,155.28,155.19,6.5152]
[1723245317234,39.92,155.22,155.17,15.0981]
[1723245317430,0.12549,155.21,155.17,15.0981]
[1723245317621,45.25098,155.21,155.17,15.0981]
[1723245318550,0.25098,155.21,155.17,15.0981]
[1723245318733,0.12549,155.21,155.17,15.0981]
[1723245318937,45.12549,155.22,155.17,15.0981]
[1723245319444,51.56799,155.22,155.17,15.0981]
[1723245319645,6.4441,155.18,155.17,15.0981]
[1723245319835,51.56969,155.18,155.15,6.2602]
[1723245320034,45.0,155.17,155.15,6.2602]
[1723245320426,45.25098,155.18,155.15,6.2602]
[1723245321626,45.0,155.19,155.15,6.2602]
[1723245321826,44.5,155.19,155.15,6.2602]
[1723245322056,0.12549,155.21,155.15,6.2602]
[1723245322226,39.92,155.19,155.15,6.2602]
[1723245323547,46.3637,155.19,155.15,6.2602]
[1723245323852,0.12549,155.2,155.15,6.2602]
[1723245323853,39.92,155.17,155.15,6.2602]
[1723245324151,45.0,155.16,155.15,6.2602]
[1723245324737,45.0,155.16,155.13,16.2776]
[1723245325339,39.92,155.19,155.14,1.28910005]
[1723245325547,45.0,155.18,155.14,1.28910005]
[1723245325946,6.4419,155.24,155.14,1.28895849]
[1723245326146,39.92,155.22,155.14,1.28876613]
[1723245326348,39.92,155.22,155.14,20.0]
[1723245327045,46.3624,155.22,155.14,20.0]
[1723245327649,45.0,155.21,155.14,20.0]
[1723245328046,39.92,155.2,155.14,20.0]
[1723245328247,45.0,155.19,155.14,20.0]
[1723245328855,39.92,155.22,155.16,6.2602]
[1723245329067,45.0,155.21,155.17,1.28867523]
[1723245329237,45.0,155.21,155.16,6.2602]
[1723245329947,45.0,155.21,155.17,1.28866094]
[1723245330343,39.92,155.22,155.16,6.2602]
[1723245331558,6.71937652,155.27,155.16,6.2602]
[1723245331559,39.92,155.24,155.16,6.2602]
[1723245331737,0.12549,155.19,155.13,16.2776]
[1723245331943,46.3646,155.17,155.13,16.2776]
[1723245332164,39.92,155.15,155.13,16.2776]
[1723245332349,45.0,155.14,155.13,16.2776]
[1723245332635,45.0,155.14,155.08,22.5378]
[1723245332636,51.69698,155.14,155.08,22.5378]
[1723245332842,39.92,155.13,155.08,22.5378]
[1723245333042,45.0,155.12,155.08,22.5378]
[1723245333436,39.92,155.15,155.08,22.5378]
[1723245333637,45.0,155.14,155.08,22.5378]
[1723245335948,39.92,155.13,155.08,22.5378]
[1723245336143,45.0,155.12,155.08,22.5378]
[1723245337346,40.17098,155.15,155.08,22.5378]
[1723245337550,45.0,155.14,155.08,22.5378]
[1723245340268,39.92,155.11,155.08,22.5378]
[1723245340655,45.0,155.1,155.08,22.5378]
[1723245341858,45.0,155.1,155.08,16.2776]
[1723245342206,45.0,155.1,155.07,0.8420987]
[1723245342207,51.4476,155.1,155.07,0.8420987]
[1723245342568,6.4482,155.08,155.07,0.8420987]
[1723245342787,51.95016,155.08,155.07,0.8420987]
[1723245343251,45.0,155.08,155.07,0.8420987]
[1723245343663,51.82467,155.08,155.07,0.8420987]
[1723245343863,51.95016,155.08,155.07,0.8420987]
[1723245348867,6.4503,155.03,155.02,16.4052]
[1723245349067,45.0,155.03,155.02,16.4052]
[1723245350274,45.0,155.03,155.01,6.6019]
[1723245350980,45.0,155.02,155.01,6.6019]
[1723245352081,77.0,155.02,154.99,16.4052]
[1723245352387,77.0,155.02,154.97,6.6019]
[1723245354590,0.37647,155.01,154.97,6.6019]
[1723245354795,0.37647,155.01,154.97,1.6019]
[1723245356173,77.0,155.02,154.97,1.6019]
[1723245356374,6.6402,155.09,154.97,1.6019]
[1723245356694,32.0,155.05,154.98,1.29006619]
[1723245356879,32.0,155.05,154.99,1.29008408]
[1723245357081,32.0,155.05,154.97,21.6019]
[1723245357481,32.0,155.05,154.98,1.29010318]
[1723245357676,45.0,155.04,154.97,21.6019]
[1723245358781,16.2389,155.11,154.97,54.89201907]
[1723245358969,32.0,155.09,155.0,15.2267]
[1723245359176,32.0,155.09,155.0,16.5165025]
[1723245359571,38.448,155.09,155.0,15.2267]
[1723245359781,6.4482,155.08,155.0,15.2267]
[1723245359993,38.4479,155.09,155.0,15.2267]
[1723245360190,32.0,155.09,155.01,1.2898283]
[1723245360373,32.0,155.11,155.03,6.351]
[1723245360773,38.4479,155.09,155.03,6.351]
[1723245361493,32.0,155.09,155.03,6.351]
[1723245361796,38.449,155.07,155.03,6.351]
[1723245362105,32.12549,155.05,155.0,15.2267]
[1723245362276,51.82647,155.04,155.0,15.2267]
[1723245362470,45.25098,155.04,155.0,15.2267]
[1723245362672,45.0,155.04,155.0,15.2267]
[1723245363594,32.12549,155.03,154.95,6.351]
[1723245363884,45.12549,155.02,154.96,15.2267]
[1723245365298,45.0,155.02,154.97,1.29043272]
[1723245365479,45.0,155.02,154.96,15.2267]
[1723245365685,32.50196,155.01,154.96,15.2267]
[1723245365900,45.0,155.0,154.96,15.2267]
[1723245366198,0.50196,154.99,154.96,15.2267]
[1723245366501,0.25098,154.99,154.96,15.2267]
[1723245366701,0.12549,154.99,154.96,15.2267]
[1723245367406,0.25098,154.99,154.96,15.2267]
[1723245367580,0.37647,154.99,154.96,15.2267]
[1723245369282,32.37647,154.99,154.96,15.2267]
[1723245369578,45.0,154.98,154.96,15.2267]
[1723245371091,45.0,154.98,154.92,6.351]
[1723245371289,0.12549,154.97,154.92,6.351]
[1723245371490,32.37647,154.97,154.92,6.351]
[1723245371692,45.0,154.96,154.92,6.351]
[1723245373102,45.0,154.96,154.91,16.0687987]
[1723245373300,32.0,154.93,154.91,0.8420987]
[1723245373510,45.0,154.92,154.91,0.8420987]
[1723245373688,45.0,154.92,154.91,7.2973987]
[1723245374209,51.4549,154.92,154.91,0.8420987]
[1723245374408,45.12549,154.92,154.91,0.8420987]
[1723245374708,45.0,154.92,154.91,0.8420987]
[1723245375511,45.25098,154.92,154.91,0.8420987]
[1723245375703,45.12549,154.92,154.91,0.8420987]
[1723245375904,45.37647,154.92,154.91,0.8420987]
[1723245376103,45.50196,154.92,154.91,0.8420987]
[1723245376292,51.95686,154.92,154.91,0.8420987]
[1723245376487,45.50196,154.92,154.91,0.8420987]
[1723245376707,45.50196,154.92,154.81,6.4595]
[1723245376708,6.457,154.87,154.81,6.4595]
[1723245376894,15.39219,154.91,154.8,6.1189]
[1723245376895,32.0,154.85,154.8,6.1189]
[1723245377225,0.25098,154.91,154.8,6.1189]
[1723245377417,32.12549,154.9,154.86,6.4574]
[1723245377714,32.0,154.9,154.8,38.1189]
[1723245377917,32.0,154.92,154.9,6.4556]
[1723245378206,32.0,154.92,154.85,15.1171]
[1723245378594,0.12549,154.91,154.85,15.1171]
[1723245379298,45.12549,154.91,154.85,15.1171]
[1723245379501,32.0,154.9,154.85,15.1171]
[1723245379735,45.0,154.89,154.85,15.1171]
[1723245380208,45.0,154.89,154.8,38.1189]
[1723245380209,38.457,154.88,154.82,6.4587]
[1723245380412,32.0,154.86,154.82,6.4587]
[1723245380596,38.4575,154.86,154.81,15.1171]
[1723245380795,45.12549,154.85,154.81,15.1171]
[1723245380991,32.0,154.84,154.81,15.1171]
[1723245381318,32.0,154.84,154.8,6.4598]
[1723245381319,0.12549,154.83,154.8,6.4598]
[1723245381522,45.0,154.83,154.77,15.1171]
[1723245381718,45.0,154.83,154.8,6.4599]
[1723245381925,45.0,154.83,154.77,15.1171]
[1723245382731,0.25098,154.82,154.77,15.1171]
[1723245382892,32.0,154.81,154.79,6.4603]
[1723245383092,45.0,154.8,154.78,6.4607]
[1723245383321,32.0,154.79,154.75,7.3036987]
[1723245383515,32.0,154.82,154.75,0.8420987]
[1723245383722,45.0,154.81,154.75,0.8420987]
[1723245383924,45.0,154.81,154.79,6.4601]
[1723245384109,32.12549,154.8,154.76,6.4616]
[1723245384305,45.0,154.79,154.75,0.8420987]
[1723245384511,51.4604,154.79,154.75,0.8420987]
[1723245384823,32.0,154.76,154.75,0.8420987]
[1723245385002,77.37647,154.76,154.75,0.8420987]
[1723245385215,77.0,154.76,154.75,0.8420987]
[1723245385596,0.12549,154.82,154.75,0.8420987]
[1723245385815,40.13,154.8,154.75,0.8420987]
[1723245386024,45.0,154.79,154.75,0.8420987]
[1723245386724,40.38098,154.78,154.75,0.8420987]
[1723245386926,45.0,154.79,154.75,0.8420987]
[1723245387227,40.13,154.82,154.75,0.8420987]
[1723245387824,40.13,154.8,154.75,0.8420987]
[1723245388118,40.13,154.8,154.77,6.4611]
[1723245388497,45.0,154.79,154.76,6.4616]
[1723245388691,40.13,154.82,154.78,6.4606]
[1723245388896,40.13,154.84,154.75,0.8420987]
[1723245389097,40.13,154.82,154.75,0.8420987]
[1723245389336,40.13,154.8,154.75,0.8420987]
[1723245389621,46.5908,154.78,154.75,0.8420987]
[1723245390328,45.0,154.77,154.75,0.8420987]
[1723245391125,0.50196,154.76,154.75,0.8420987]
[1723245391509,6.96356,154.76,154.75,0.8420987]
[1723245391823,92.09356,154.76,154.75,0.8420987]
[1723245392327,85.63196,154.76,154.75,0.8420987]
[1723245394223,40.13,154.78,154.67,40.13]
[1723245394526,6.276,154.81,154.67,40.13]
[1723245394527,40.13,154.8,154.67,40.13]
[1723245394700,40.13,154.78,154.67,40.13]
[1723245394906,46.5908,154.78,154.65,55.2471]
[1723245395116,46.5908,154.78,154.66,20.0]
[1723245395303,40.13,154.8,154.7,6.1189]
[1723245395504,40.13,154.84,154.71,55.96328405]
[1723245395722,40.13,154.84,154.72,20.0]
[1723245396030,40.13,154.88,154.76,6.4302]
[1723245396325,40.13,154.88,154.78,15.0345]
[1723245396702,6.4574,154.86,154.78,15.0345]
[1723245397329,40.13,154.86,154.78,15.0345]
[1723245397529,40.13,154.84,154.78,15.0345]
[1723245398327,45.0,154.83,154.78,15.0345]
[1723245401636,46.96597,154.82,154.78,15.0345]
[1723245401813,45.0,154.81,154.78,15.0345]
[1723245402434,40.63196,154.8,154.7,16.32672643]
[1723245402727,40.50647,154.8,154.7,15.0345]
[1723245403031,6.4594,154.82,154.71,1.29222326]
[1723245403032,45.0,154.79,154.71,1.29222326]
[1723245403610,45.0,154.79,154.7,55.1645]
[1723245404208,45.0,154.8,154.7,55.1645]
[1723245404410,45.0,154.81,154.7,56.3108967]
[1723245404610,6.4606,154.79,154.7,15.0345]
[1723245404835,45.0,154.78,154.7,15.0345]
[1723245405210,51.4603,154.79,154.7,15.0345]